Cogmind - Beta 16.1 @@@ ROGUE MODE // 2026.02.14 @ 05:00:16 Player: shapeshifter Result: Destroyed by BC-BQR(R) with Subdweller Shrapnel Launcher Performance ------------- Evolutions (0) 0 Regions Visited (2) 400 Robots Destroyed (35) 175 Value Destroyed (856) 856 Prototype IDs (13) 260 Alien Tech Used (0) 0 Bonus (0) 0 TOTAL SCORE: 1691 Bonus ------- None Cogmind --------- Core Integrity 0/250 Matter 248/300 Energy 100/100 System Corruption 0% Temperature Cool (0) Movement Rolling (95) Ox1 Location -10/Subcaves Parts ------- > --- POWER (1) -------- Subdweller Power Source > --- PROPULSION (2) --- Wheel Subdweller Monowheel > --- UTILITY (2) ------ Disposable Heat Sink Subdweller Optics > --- WEAPON (2) ------- Heavy Assault Rifle Barrage Gun > --- INVENTORY (5) ---- Humpback Power Bank Multitool Scrap Shield Fragment (41) Peak State ------------ > --- POWER ------------ Subdweller Power Source > --- PROPULSION ------- Subdweller Monowheel > --- UTILITY ---------- Small Storage Unit Makeshift Light Armor Plating > --- WEAPON ----------- Barrage Gun Barrage Gun > --- INVENTORY -------- Subdweller Power Source Humpback Improved Terrain Scanner Power Bank Heavy Riot Gun Medium Laser Autobeam [Rating: 17] Favorites ----------- Power Subdweller Power Source Engine Subdweller Power Source Propulsion Subdweller Monowheel Treads Light Treads Wheel Subdweller Monowheel Utility Scrap Shield Device Disposable Heat Sink Storage Small Storage Unit Protection Scrap Shield Weapon Battle Cannon Energy Gun Medium Laser Ballistic Gun Barrage Gun Ballistic Cannon Battle Cannon Build | -11 -10 -10 ------- Run | Yrd Mat Sub Slots Evolved . | . . . Power . | . . . Propulsion . | . . . Utility . | . . . Weapon . | . . . Parts Attached 28 | 7 1 20 Power 5 | 1 1 3 Engine 5 | 1 1 3 Core . | . . . Reactor . | . . . Propulsion 7 | 2 . 5 Treads 2 | 2 . . Leg . | . . . Wheel 5 | . . 5 Hover . | . . . Flight . | . . . Utility 7 | 2 . 5 Device 4 | 1 . 3 Storage 1 | 1 . . Processor . | . . . Hackware . | . . . Protection 2 | . . 2 Artifact . | . . . Weapon 9 | 2 . 7 Energy Gun 2 | 1 . 1 Energy Cannon . | . . . Ballistic Gun 5 | 1 . 4 Ballistic Cannon 2 | . . 2 Launcher . | . . . Special Weapon . | . . . Impact Weapon . | . . . Slashing Weapon . | . . . Piercing Weapon . | . . . Special Melee Weapon . | . . . Unidentified Prototypes . | . . . Parts Lost 9 | . . 9 Power 1 | . . 1 Propulsion 3 | . . 3 Utility 2 | . . 2 Weapon 3 | . . 3 Highest Loss Streak 3 | . . 3 To Critical Strikes . | . . . Average Backups 4 | 2 3 4 Power . | . 1 . Propulsion . | . . . Utility 1 | . 1 1 Weapon 1 | 1 1 1 Tool/Special . | . . . Unused Backups 7 | . . 7 Power 1 | . . 1 Propulsion . | . . . Utility 2 | . . 2 Weapon 3 | . . 3 Tool/Special 1 | . . 1 Average Slot Usage (%) 78 | . 100 77 Engine 9 | . 14 9 Treads 6 | . 28 5 Wheel 15 | . . 15 Device 6 | . 14 6 Storage 4 | . 14 3 Protection 8 | . . 8 Energy Gun 3 | . 14 2 Ballistic Gun 9 | . 14 9 Ballistic Cannon 15 | . . 16 Peak Build Rating 17 | 7 7 17 Average Rating 11 | 5 7 12 On Entrance 4 | . 7 7 Avg Prop Armor Cover (%) 3 | . . 3 Naked Turns . | . . . Heaviest Build 29 | 13 13 29 Greatest Support 40 | 40 40 40 Greatest Overweight (x) 9 | . . 9 Average Overweight (x) 1 | . . 1 Largest Inventory Capacity 8 | 8 8 8 Average Capacity 6 | 7 8 5 Most Carried 8 | 5 4 8 Average Carried 4 | 2 3 5 Final Capacity 8 | 8 8 5 Final Carried 5 | 3 3 5 Class Distribution -------------------- 67% | Mutant 21% | Subdweller-Mutant 11% | Scavenger-Mutant Dominant Class ---------------- Mutant | -10/Materials Mutant | -10/Subcaves Resources | -11 -10 -10 ----------- Run | Yrd Mat Sub Matter Collected 1124 | 336 40 748 Remotely . | . . . Salvage Created 937 | 234 118 585 Parts 71 | 21 10 40 Haulers Intercepted . | . . . Recyclers Shooed . | . . . Parts Field Recycled . | . . . Retrieved Matter . | . . . Parts Self-Destructed 8 | . . 8 Prevented . | . . . Parts Restored . | . . . Kills | -11 -10 -10 ------- Run | Yrd Mat Sub Combat Hostiles Destroyed 23 | . 4 19 Guns 18 | . 4 14 Cannons 5 | . . 5 Classes Destroyed 8 | 2 3 3 Worker 1 | . 1 . Tunneler 8 | 8 . . Recycler 1 | 1 . . Turret 2 | . . 2 Swarmer 6 | . 2 4 Grunt 2 | . 2 . Sentry 1 | . . 1 Subdweller 14 | . . 14 Best Kill Streak 4 | 2 2 4 Combat Bots Only 4 | . 2 4 Max Kills in Single Turn 2 | 1 1 2 Gunslinging 1 | . . 1 Exploded . | . . . Melee . | . . . Uniques/NPCs Destroyed . | . . . Combat | -11 -10 -10 -------- Run | Yrd Mat Sub Hostile Shots Fired 161 | . 20 141 Missed 51 | . 7 44 Hits 110 | . 13 97 Projectile 110 | . 13 97 AOE 1 | . . 1 Critical Strikes 4 | . . 4 Damage Taken 1677 | . 122 1555 Core 260 | . 10 250 Absorbed by Shields . | . . . Core Remaining (%) 100 | 100 . . Volleys Fired 121 | 22 11 88 Largest 2 | 2 2 2 Hottest 90 | 70 70 90 Shots Fired 240 | 44 22 174 Gun 137 | 44 22 71 Cannon 103 | . . 103 Launcher . | . . . Special . | . . . Kinetic 176 | 22 11 143 Thermal 64 | 22 11 31 Explosive . | . . . Electromagnetic . | . . . Robot Hit Streak 13 | 6 7 13 Robot Miss Streak 4 | 3 3 4 Penetration Max . | . . . Secondary Targets 2 | . . 2 Max Gunslinging Chain 1 | . . 1 Shots Hit Robots 133 | 30 14 89 Core Hits 54 | 10 7 37 Critical Kills . | . . . Critical Parts Destroyed . | . . . Critical Strikes 2 | 1 . 1 Burn 1 | 1 . . Blast 1 | . . 1 Melee Attacks . | . . . Impact . | . . . Slashing . | . . . Piercing . | . . . Sneak Attacks . | . . . Combat Hostiles . | . . . Follow-up Attacks . | . . . Damage Inflicted 2301 | 374 184 1743 Guns 1436 | 374 184 878 Cannons 865 | . . 865 Explosions . | . . . Melee . | . . . Ramming . | . . . Kinetic 1534 | 186 73 1275 Thermal 767 | 188 111 468 Explosive . | . . . Electromagnetic . | . . . Impact . | . . . Slashing . | . . . Piercing . | . . . Highest Corruption . | . . . Average Corruption . | . . . Corruption Purged . | . . . Corruption Blocked . | . . . Overload Shots . | . . . Overflow Damage . | . . . Projectiles . | . . . Explosions . | . . . Melee . | . . . Knockbacks 10 | . . 10 Impact . | . . . Kinetic 10 | . . 10 Secondary . | . . . Self-Inflicted Damage . | . . . Shots . | . . . Rammed . | . . . Targets Rammed . | . . . Kicked . | . . . Crushed . | . . . Highest Temperature 66 | 27 66 24 Average Temperature 13 | 10 21 10 Received Heat Transfer 357 | . 36 321 Siege Activations . | . . . Martial Activations . | . . . Shielding Activations . | . . . Robots Disrupted . | . . . Combat Hostiles . | . . . Robots Corrupted . | . . . Combat Hostiles . | . . . Parts Fried . | . . . Impact Corruptions . | . . . Robots Melted . | . . . Combat Hostiles . | . . . Parts Melted 2 | 2 . . Heat Transferred 1647 | 629 333 685 Parts Sabotaged . | . . . Parts Stolen . | . . . Parts Stripped . | . . . Power Chain Reactions . | . . . Alert | -11 -10 -10 ------- Run | Yrd Mat Sub Maximum Alert Level . | . . . Low Security (%) 100 | 100 100 . Level 1 . | . . . Level 2 . | . . . Level 3 . | . . . Level 4 . | . . . Level 5 . | . . . High Security . | . . . Max Security . | . . . Peak Influence 50 | 5 50 . Initial . | . . . Average 8 | 1 18 . Influence Increases 380 | 45 105 230 Destroy 0b10 Robot/C 220 | . 80 140 Destroy 0b10 Robot/NC 50 | 45 5 . Destroy Leader 20 | . 20 . Lose Combat Pursuer 90 | . . 90 Influence Decreases 380 | 45 80 255 Entered New Map 13 | . . 13 Time Decay 327 | 45 80 202 Lost Part 40 | . . 40 Squads Dispatched 2 | . 2 . Investigation 1 | . 1 . Extermination . | . . . Reinforcement 1 | . 1 . Assault . | . . . Garrison . | . . . Intercept . | . . . Searches Triggered . | . . . Construction Impeded . | . . . Haulers Reinforced . | . . . Active Scanning Responses . | . . . Cargo Convoy Interrupts . | . . . Stealth | -11 -10 -10 --------- Run | Yrd Mat Sub Distress Signals 2 | . 2 . Communications Jammed . | . . . Distress Signals . | . . . Times Spotted 32 | . 8 24 Peak Tracking Total 6 | . 4 6 Tactical Retreats 2 | . . 2 Traps | -11 -10 -10 ------- Run | Yrd Mat Sub Traps Triggered 1 | . 1 . Indirectly . | . . . Trap Hack Attempts . | . . . Triggered . | . . . Disarmed . | . . . Reprogrammed . | . . . Reused . | . . . Traps Extracted . | . . . Installed . | . . . Triggered . | . . . Machines | -11 -10 -10 ---------- Run | Yrd Mat Sub Machines Disabled 2 | . . 2 Max in Single Turn 1 | . . 1 Machines Repaired . | . . . Machines Dismantled . | . . . Machines Sabotaged . | . . . Overloaded Fab Kills . | . . . Hacking | -11 -10 -10 --------- Run | Yrd Mat Sub Machines Accessed 3 | . 1 2 Terminals . | . . . Fabricators . | . . . Repair Stations . | . . . Recycling Units 1 | . 1 . Scanalyzers . | . . . Garrison Access . | . . . Total Hacks 6 | . 1 5 Successful 6 | . 1 5 Failed . | . . . Catastrophic . | . . . Database Lockouts . | . . . Manual . | . . . Terminals . | . . . Fabricators . | . . . Repair Stations . | . . . Recycling Units 1 | . 1 . Scanalyzers . | . . . Garrison Access . | . . . Terminal Hacks 5 | . . 5 Record 4 | . . 4 Proto ID Catalog 1 | . . 1 Fabricator Hacks . | . . . Repair Station Hacks . | . . . Recycling Unit Hacks 1 | . 1 . Retrieve Components 1 | . 1 . Scanalyzer . | . . . Garrison Access Hacks . | . . . Unauthorized Hacks . | . . . Terminals . | . . . Fabricators . | . . . Repair Stations . | . . . Recycling Units . | . . . Scanalyzers . | . . . Garrison Access . | . . . Data Cores Recovered . | . . . Used . | . . . Hacking Detections . | . . . Full Trace Events . | . . . Feedback Events . | . . . Feedback Blocked . | . . . Robot Schematics Acquired . | . . . Robots Built . | . . . Authchips . | . . . Time . | . . . Total Robot Build Rating . | . . . Part Schematics Acquired . | . . . Parts Built . | . . . Authchips . | . . . Time . | . . . Total Part Build Rating . | . . . Part Studies Acquired . | . . . Parts Repaired . | . . . Time . | . . . Parts Recycled . | . . . Recycled Matter . | . . . Retrieved Matter . | . . . Retrieved Components 3 | . 3 . Parts Scanalyzed . | . . . Part Schematics Acquired . | . . . Parts Damaged . | . . . Bothacking | -11 -10 -10 ------------ Run | Yrd Mat Sub Used RIF Installer . | . . . Robots Hacked . | . . . Non-combat . | . . . Combat . | . . . Robot Hacks Applied . | . . . Relay Couplers Released . | . . . Fabnet Peak Effective % . | . . . Robots Rewired . | . . . Allies Hacked . | . . . Hacks Repelled . | . . . Allies | -11 -10 -10 -------- Run | Yrd Mat Sub Total Allies . | . . . Largest Group . | . . . Highest-Rated Group . | . . . Highest-Rated Ally . | . . . Total Orders . | . . . Ally Attacks . | . . . Total Damage . | . . . Kills . | . . . Allies Corrupted . | . . . Allies Melted . | . . . Intel | -11 -10 -10 ------- Run | Yrd Mat Sub Active Infowar (turns) 980 | 46 212 722 Optics 285 | . . 285 Terrain 250 | . . 250 Seismic 445 | 46 212 187 Robot Analysis Total . | . . . Derelict Logs Recovered 1 | . . 1 Drone Launches . | . . . Drone Recoveries . | . . . Exploration | -11 -10 -10 ------------- Run | Yrd Mat Sub Turns Passed 4722 | 338 212 4172 Spaces Moved 2520 | 177 82 2261 Core 554 | 25 . 529 Treads 641 | 152 82 407 Legs . | . . . Wheels 1325 | . . 1325 Hover . | . . . Flight . | . . . Fastest Speed 50 | 50 160 95 Average Speed 167 | 144 160 169 Slowest Speed 500 | 160 160 500 Overloaded Moves . | . . . Propulsion Burnouts . | . . . Robots Hopped . | . . . Potential Cave-ins . | . . . Cave-ins Triggered . | . . . Exploration Rate (%) 35 | 8 15 84 Regions Visited 2 Branch Regions 1 Pre-discovered Areas 2 | . . 2 Known Exits Taken . | . . . Unknown Exits Taken 2 | 1 1 . Scrap Searched 9 | . . 9 Spaces Dug . | . . . Terrain Destroyed 2 | . . 2 Melee . | . . . Projectile 2 | . . 2 AOE . | . . . Terrain Rammed . | . . . Walls Destroyed . | . . . Machines Disabled . | . . . Actions | -11 -10 -10 --------- Run | Yrd Mat Sub Total 2780 | 215 141 2424 Wait 63 | . 46 17 Move 2518 | 176 81 2261 Hop . | . . . Pick Up 28 | 10 1 17 Fast Attach 7 | . . 7 Attach 17 | 7 . 10 Detach 2 | . . 2 Swap 5 | . 1 4 Drop 16 | . 1 15 Fire 121 | 22 11 88 Melee . | . . . Ram . | . . . Kick . | . . . Crush . | . . . Escape Stasis . | . . . Rewire . | . . . Trap . | . . . Miscellaneous 3 | . . 3 Route ------- -11/Scrapyard -10/Materials -10/Subcaves (discovered 3 exits: [*Mat x2] / [*Rec]) History --------- Turn | Location | Event 3 | -11/Scrapyard | Discovered new exit (range 16) 339 | -11/Scrapyard | Entered Materials 340 | -10/Materials | Build established: Mutant 521 | -10/Materials | Discovered new exit (range 9) 551 | -10/Materials | Entered Subcaves 861 | -10/Subcaves | Disturbed a concealed Subdweller 1024 | -10/Subcaves | Discovered new exit (range 13) 1301 | -10/Subcaves | A Subdweller sparked back to life 1301 | -10/Subcaves | A Subdweller sparked back to life 1345 | -10/Subcaves | Shifting Twisted Machinery released Sub. Optics 1345 | -10/Subcaves | Found Prototype Device 1354 | -10/Subcaves | Lost 3 parts (2n1w) 1382 | -10/Subcaves | Shifting Twisted Machinery released Battle Cannon 1384 | -10/Subcaves | Shifting Twisted Machinery released Sub. Laser 1457 | -10/Subcaves | Shifting Twisted Machinery released Piercing Trap 1457 | -10/Subcaves | Discovered new exit (range 9) 1458 | -10/Subcaves | Shifting Twisted Machinery released Sub. Laser 1458 | -10/Subcaves | Shifting Twisted Machinery released Sub. Power Source 1943 | -10/Subcaves | Build established: Subdweller-Mutant 2253 | -10/Subcaves | Build established: Mutant 3045 | -10/Subcaves | Visited Clippyterm 3049 | -10/Subcaves | Learned location of Extension (-6) 3121 | -10/Subcaves | Learned location of Storage (-9) 3123 | -10/Subcaves | Discovered new exit (range 7) 3202 | -10/Subcaves | Build established: Subdweller-Mutant 3240 | -10/Subcaves | Visited 4L-MR0's lab 3244 | -10/Subcaves | Identified Power Bank 3723 | -10/Subcaves | Ambushed by Subdwellers from Twisted Machinery 3725 | -10/Subcaves | Core integrity fell below 50% 3739 | -10/Subcaves | Core integrity fell below 20% 3915 | -10/Subcaves | Build established: Mutant 4478 | -10/Subcaves | Build established: Scavenger-Mutant 4723 | -10/Subcaves | Destroyed by BC-BQR(R) with Subdweller Shrapnel Launcher Last Messages --------------- 03890_ Acquired 57 matter. 03891_ Imp. Ion Engine fries itself beyond repair. 03893_ Acquired Hvy. Assault Rifle. 04177_ Acquired Sub. Monowheel. 04297_ Acquired 66 matter. 04380_ Dropped Broken Sub. Monowheel. 04380_ Acquired Wheel. 04425_ Acquired 18 matter. 04427_ Acquired 24 matter. 04436_ Sub. Power Source shoots sparks and powers down. 04437_ Acquired Sub. Optics. 04441_ Sub. Monowheel shoots sparks and powers down. 04491_ Subatomizers dissect the Autobeam, destroying it. 04496_ Acquired Scrap Shield Fragment. 04543_ Acquired 11 matter. 04544_ Acquired 7 matter. Map ----- +----------------------------------------------------+ | ???????????????????????????????????????????## | | ??????????????????????????????????????????## | | ????????????????????????????????????????### | | ?????????????????????????????????????#### | | ?????????????????????????????######### | | ???????????????????????????? | | ???????????????????????????? | | ???????????????????????????? ### | | ????????????????????????????? ### ### | | ????????????????????????#????? ? ???# | | ???????????????????????? #???????????## | | ???????????????????????? ##?????????## | | ???????????????????????? #?????????# | | ???????????????????????? #????????## # | | ???????????????????????? ???# ??## ### ## | | ??????????????????????### ???# # ######? | | ??????????????????????# #RR????# ##??## | | ??????????????????????? ????## # #??# | | ??????????????????????? ?? ### #??# | | ??????????????????????? ? #??# ##?# | | ???????????????????????# ??# ????# ### | | ??????????????????????## ??????????# ### | | ??????????????????????# #??????????# #??### | | ??????????????????????# #???????#####?????## % # | | ??????????????????????# ##???#### ##?????##& ## | | ???????????????????????# @ ##### # #?????# ##? | | ???????????????????????## ####### ##? | | ????????????????????????# ## &%#? | | ????????????????????????## ##### ### ## | | ?????????????????????????####???###?# ## | | ????????????????????????????????????# | | ????????????????????????????????????# | | ????????????????????????????????????# | | ????????????????????????????????????# | | ????????????????????????????????????# | | ????????????????????????????????????# ### | | ????????????????????????????????????## ##?? | | ?????????????????????????????????????## ##??? | | ??????????????????????????????????????# ##???? | | ??????????????????????????????????????## ##???? | | ???????????????????????????????????????## ###?? | | ???????????????????????????????????####?## ### | | ?????????????????????????????????### #??#### # | | ??????????????????????????????#### #?????# | | ??????????????????????????????# ##?##### | | ??????######??????????????????# ## ####### | | ??????# ##?????????###?????# % #????# | | ???#### % #?###?????# ####??## #??### | | ??## ##?# ##????#% ^ #???# ###?## | | ?## #??# ##??## #???# ##???# | +----------------------------------------------------+ Best States ------------- Heat Dissipation 25 Coolant Potential 50 Energy Generation 15 Energy Capacity 200 Matter Stores 300 Matter Capacity 300 Sight Range 21 Terrain Scan Range 16 Terrain Scan Density 10 Armor Coverage 800 Evasion (%) 50 Recoil Reduction 2 Item Schematics ----------------- None Robot Schematics ------------------ None Fabricated ------------ Nothing Repaired ---------- Nothing Studied --------- None Alien Tech Used ----------------- None Achievements -------------- None Challenges ------------ None Game ------ Seed ShrapnelRingInterface Manual? 0 Play Time 00:17:07 Cumulative 700.0 hours Start 2026.02.13 @ 21:59:18 End 2026.02.14 @ 05:00:16 Sessions 2 Manual Loads 0 Difficulty Rogue Special Mode None Game No. 870 Rogue 870 Adventurer 0 Explorer 0 Win Type - Total 25 Types 12/1/3/3/2/0/2/2/0/0 Lore% 96 Gallery% 91 Achievement% 82 Wizard Run 0 Options --------- Layout 2 ASCII 0 Keyboard 0 Movement Mouse Keybinds 0 Fullscreen 2 Font 24/Terminus Map View 50x49 Zoom Use 0% Tactical HUD 1 Map Filters NONE Filters NONE Steam 1 RUN: 848683d9-c7f7-4c09-a6bb-56d85b5a2626